bitfinex/quotes_SOLUSD_20250724
["timestamp","ask_amount","ask_price","bid_price","bid_amount"]
[1753364346050,55.10332325,186.58,186.55,0.67]
[1753364346479,55.10332325,186.58,186.52,0.67]
[1753364346480,18.86352908,186.56,186.52,0.67]
[1753364346776,18.86352908,186.56,186.43,13.40985892]
[1753364346777,13.50332325,186.53,186.43,7.1916]
[1753364347078,13.50332325,186.45,186.43,6.5216]
[1753364347260,55.06332325,186.45,186.43,6.5216]
[1753364347657,13.50332325,186.44,186.41,1.5174]
[1753364347980,13.50332325,186.43,186.41,1.5174]
[1753364348158,41.58,186.42,186.41,1.5174]
[1753364348351,41.58,186.42,186.41,2.1874]
[1753364348554,41.58,186.42,186.41,15.69072325]
[1753364348753,41.56,186.45,186.41,47.05524232]
[1753364348982,13.50332325,186.48,186.43,13.50332325]
[1753364349161,13.50332325,186.48,186.41,32.88191907]
[1753364349162,64.64,186.56,186.45,13.50332325]
[1753364349363,13.50332325,186.51,186.46,0.7]
[1753364349686,41.56,186.5,186.46,0.76]
[1753364349862,13.50332325,186.49,186.46,0.76]
[1753364350385,18.86611619,186.47,186.46,0.06]
[1753364351382,60.40611619,186.47,186.46,0.06]
[1753364352081,41.54,186.47,186.46,0.76]
[1753364352568,41.54,186.47,186.46,14.26332325]
[1753364352972,41.54,186.47,186.46,0.76]
[1753364353166,46.90279294,186.47,186.46,0.76]
[1753364353370,41.54,186.47,186.46,0.76]
[1753364354165,46.90279294,186.47,186.46,0.06]
[1753364354400,41.54,186.47,186.46,0.76]
[1753364354862,46.90279294,186.47,186.46,0.06]
[1753364355061,0.03,186.5,186.46,26.76]
[1753364355366,5.35790827,186.64,186.53,26.0]
[1753364355572,2.79605394,186.58,186.54,26.7]
[1753364355794,2.79605394,186.58,186.55,14.20332325]
[1753364355962,41.62,186.59,186.55,0.7]
[1753364356162,41.62,186.59,186.56,0.7]
[1753364356684,13.50332325,186.58,186.53,26.7]
[1753364356868,13.50332325,186.58,186.54,0.7]
[1753364357186,55.12332325,186.59,186.55,0.7]
[1753364357386,41.62,186.59,186.56,0.7]
[1753364357686,41.62,186.59,186.57,0.7]
[1753364357874,41.62,186.59,186.58,0.7]
[1753364358185,60.48266726,186.59,186.53,26.0]
[1753364358393,13.50332325,186.57,186.53,26.0]
[1753364358601,41.74,186.56,186.53,0.7]
[1753364358879,13.50332325,186.54,186.5,6.4576]
[1753364359089,13.50332325,186.52,186.5,6.4576]
[1753364359269,41.72,186.51,186.5,6.4576]
[1753364359469,41.72,186.51,186.47,14.20332325]
[1753364359470,41.72,186.51,186.47,0.7]
[1753364359670,13.50332325,186.5,186.46,0.06]
[1753364359971,41.72,186.51,186.46,0.06]
[1753364359972,13.50332325,186.48,186.46,0.06]
[1753364360169,55.20332325,186.47,186.46,0.06]
[1753364360370,41.7,186.47,186.46,0.06]
[1753364360686,41.7,186.47,186.46,0.76]
[1753364361471,41.7,186.47,186.46,0.06]
[1753364362485,41.7,186.47,186.46,0.76]
[1753364362696,41.7,186.47,186.46,0.06]
[1753364362902,60.56611619,186.47,186.46,0.06]
[1753364363266,104.0351233,186.47,186.46,1e-08]
[1753364364386,78.0351233,186.47,186.46,1e-08]
[1753364365781,0.28432314,186.42,186.37,0.06]
[1753364365986,13.50332325,186.38,186.37,0.06]
[1753364366190,55.10332325,186.38,186.37,0.06]
[1753364366374,41.6,186.38,186.37,0.06]
[1753364366575,41.6,186.38,186.37,0.76]
[1753364366888,41.6,186.38,186.37,0.06]
[1753364366889,55.08332325,186.38,186.37,0.06]
[1753364367566,13.50332325,186.38,186.37,0.06]
[1753364367765,55.08332325,186.38,186.37,0.06]
[1753364368584,60.4487058,186.38,186.37,0.06]
[1753364368790,0.4,186.47,186.37,0.76]
[1753364369093,13.50332325,186.49,186.44,13.50332325]
[1753364369293,13.50332325,186.5,186.45,0.7]
[1753364369500,41.58,186.5,186.46,14.20332325]
[1753364369701,41.58,186.5,186.47,0.7]
[1753364369995,41.58,186.5,186.47,14.20332325]
[1753364370202,41.58,186.5,186.48,0.7]
[1753364370366,41.58,186.5,186.49,0.7]
[1753364370571,5.36221781,186.49,186.46,6.4424]
[1753364370793,5.36221781,186.49,186.46,0.7]
[1753364370794,13.50332325,186.49,186.46,0.7]
[1753364370986,46.94206675,186.5,186.46,0.7]
[1753364371189,60.44539,186.5,186.47,0.7]
[1753364371395,41.58,186.5,186.48,0.7]
[1753364371571,41.58,186.5,186.49,0.7]
[1753364371972,41.58,186.5,186.45,14.20332325]
[1753364372177,41.58,186.5,186.46,13.50332325]
[1753364372375,41.58,186.5,186.47,0.7]
[1753364373405,13.50332325,186.49,186.44,39.50332325]
[1753364373585,13.50332325,186.49,186.45,0.06]
[1753364373780,13.50332325,186.48,186.45,0.06]
[1753364374092,41.52,186.47,186.45,0.06]
[1753364374488,55.02332325,186.47,186.45,0.06]
[1753364374694,60.38636395,186.47,186.45,0.06]
[1753364375278,46.8830407,186.47,186.45,0.06]
[1753364375485,41.52,186.47,186.45,0.06]
[1753364375817,41.52,186.47,186.46,0.7]
[1753364375981,41.52,186.47,186.45,0.06]
[1753364375982,46.88304988,186.47,186.45,0.06]
[1753364376177,13.50332325,186.46,186.45,0.06]
[1753364376586,18.8664038,186.46,186.45,0.06]
[1753364377881,41.52,186.47,186.45,0.06]
[1753364377882,41.52,186.47,186.45,0.76]
[1753364378807,5.36158285,186.52,186.46,14.22332325]
[1753364379012,5.36158285,186.52,186.48,13.50332325]
[1753364379312,5.36158285,186.52,186.48,0.72]
[1753364379313,41.36,186.51,186.48,0.72]
[1753364379518,54.86332325,186.51,186.45,13.56332325]
[1753364379810,13.50332325,186.49,186.45,0.06]
[1753364379993,41.34,186.48,186.45,0.06]
[1753364380194,41.34,186.48,186.45,0.78]
[1753364380397,41.34,186.48,186.45,14.28332325]
[1753364380600,41.34,186.48,186.46,0.72]
[1753364381000,41.34,186.48,186.47,14.22332325]
[1753364381307,2.79682097,186.53,186.5,26.0]
[1753364381504,38.64,186.57,186.52,13.50332325]
[1753364381505,41.3,186.54,186.52,13.50332325]
[1753364381808,41.3,186.54,186.53,0.72]
[1753364382404,41.3,186.54,186.52,13.50332325]
[1753364382705,41.33,186.54,186.5,40.22332325]
[1753364382904,41.33,186.54,186.51,0.72]
[1753364383112,46.69104045,186.54,186.51,0.72]
[1753364383407,46.6907859,186.54,186.5,39.50332325]
[1753364383592,46.6907859,186.54,186.5,40.22332325]
[1753364383797,60.19410915,186.54,186.49,13.50332325]
[1753364384112,46.6907859,186.54,186.5,14.22332325]
[1753364384285,0.03,186.54,186.51,14.22332325]
[1753364384485,0.03,186.54,186.53,45.92952325]
[1753364384710,0.03,186.54,186.53,32.4262]
[1753364384890,0.03,186.54,186.53,46.64952325]
[1753364385086,0.03,186.54,186.53,33.1462]
[1753364385489,0.03,186.54,186.53,7.1462]
[1753364385689,0.03,186.54,186.53,20.64952325]
[1753364385885,0.03,186.54,186.53,26.01059117]
[1753364386114,0.03,186.54,186.53,43.07959828]
[1753364386507,41.28,186.57,186.56,39.50332325]
[1753364386723,0.03,186.59,186.56,40.22332325]
[1753364386891,0.03,186.59,186.57,13.50332325]
[1753364387091,5.38946554,186.59,186.57,13.50332325]
[1753364387317,5.38946554,186.59,186.56,0.72]
[1753364387318,0.03,186.59,186.56,0.72]
[1753364387611,0.03,186.59,186.56,14.22332325]
[1753364387817,0.03,186.59,186.57,13.50332325]
[1753364388026,0.03,186.59,186.58,13.50332325]
[1753364388219,0.03,186.59,186.58,14.22332325]
[1753364388721,0.03,186.59,186.54,26.0]
[1753364388722,0.03,186.59,186.56,13.50332325]
[1753364389030,0.03,186.59,186.57,13.50332325]
[1753364389241,13.50332325,186.58,186.48,7.0385]
[1753364389542,0.03,186.59,186.45,0.06]
[1753364389543,13.50332325,186.5,186.45,0.06]
[1753364389836,41.2,186.49,186.46,13.50332325]
[1753364389995,41.2,186.49,186.46,14.22332325]
[1753364390191,41.2,186.48,186.47,14.22332325]
[1753364390402,41.2,186.48,186.45,39.56332325]
[1753364390733,41.2,186.48,186.45,40.28332325]
[1753364391227,41.2,186.48,186.45,0.78]
[1753364391404,46.56268091,186.48,186.45,0.78]
[1753364391736,41.2,186.48,186.46,0.72]
[1753364391897,41.2,186.48,186.45,13.56332325]
[1753364391898,41.2,186.48,186.45,18.9266505]
[1753364392097,41.2,186.48,186.47,0.72]
[1753364392805,1.6507,186.61,186.47,26.72]
[1753364392806,41.18,186.5,186.47,26.72]
[1753364393134,41.18,186.5,186.45,39.56332325]
[1753364393291,46.54217656,186.5,186.46,0.72]
[1753364394192,60.04549981,186.5,186.45,26.06]
[1753364394421,13.50332325,186.49,186.45,26.06]
[1753364394818,13.50332325,186.49,186.45,26.78]
[1753364395006,46.54217656,186.5,186.45,26.78]
[1753364395203,60.04549981,186.5,186.45,40.28332325]
[1753364395406,60.04549981,186.5,186.46,0.72]
[1753364395613,46.54217656,186.5,186.46,13.50332325]
[1753364395812,46.54217656,186.5,186.47,0.72]
[1753364396321,46.54217656,186.5,186.46,13.50332325]
[1753364396513,60.04549981,186.5,186.45,39.56332325]
[1753364396720,60.04549981,186.5,186.45,40.28332325]
[1753364397228,41.18,186.5,186.46,14.22332325]
[1753364397427,41.18,186.5,186.47,0.72]
[1753364397632,46.54199079,186.5,186.46,13.50332325]
[1753364397806,60.04531404,186.5,186.45,39.56332325]
[1753364398131,60.04531404,186.5,186.46,0.72]
[1753364398354,46.54199079,186.5,186.46,14.22332325]
[1753364398620,60.04531404,186.5,186.46,0.72]
[1753364398824,46.54199079,186.5,186.46,0.72]
[1753364399032,13.50332325,186.49,186.45,0.06]
[1753364399204,13.50332325,186.48,186.45,0.06]
[1753364399524,41.02,186.47,186.45,0.06]
[1753364399734,41.0,186.47,186.45,0.78]
[1753364400228,41.0,186.47,186.45,0.06]
[1753364400635,13.50332325,186.46,186.45,0.06]
[1753364401202,13.50332325,186.46,186.37,0.06]
[1753364401203,26.0,186.43,186.37,0.06]
[1753364401508,18.8687058,186.38,186.37,0.06]
[1753364401722,46.32538255,186.38,186.37,0.06]
[1753364401921,60.2587058,186.38,186.37,0.06]
[1753364402120,46.32538255,186.38,186.37,0.06]
[1753364402449,59.8487058,186.38,186.37,0.06]
[1753364402921,60.2787058,186.38,186.33,0.06]
[1753364403121,13.50332325,186.36,186.33,0.06]
[1753364403544,19.29928161,186.36,186.33,0.06]
[1753364403837,26.0,186.34,186.29,0.06]
[1753364403999,13.50332325,186.3,186.29,0.06]
[1753364404204,54.50332325,186.3,186.29,0.06]
[1753364404505,54.48332325,186.3,186.29,0.06]
[1753364404705,5.79595836,186.36,186.29,0.78]
[1753364404927,13.50332325,186.36,186.33,0.06]
[1753364405126,40.98,186.36,186.34,0.72]
[1753364405306,40.98,186.36,186.33,13.56332325]
[1753364405307,40.98,186.36,186.35,0.72]
[1753364405705,40.98,186.38,186.35,0.72]
[1753364405909,13.50332325,186.37,186.33,0.06]
[1753364406217,13.93332325,186.37,186.33,0.06]
[1753364406524,40.98,186.38,186.35,13.50332325]
[1753364406722,40.98,186.38,186.36,0.72]
[1753364407032,40.98,186.38,186.37,0.72]
[1753364407447,13.50332325,186.43,186.37,14.50764639]
[1753364407729,13.50332325,186.38,186.33,0.06]
[1753364407940,40.96,186.42,186.33,0.06]
[1753364407941,40.96,186.37,186.33,0.06]
[1753364408307,40.96,186.37,186.34,0.72]
[1753364408632,54.46332325,186.37,186.34,0.68]
[1753364408807,54.46332325,186.37,186.33,0.06]
[1753364408808,13.50332325,186.35,186.33,0.06]
[1753364409013,26.0,186.4,186.33,0.06]
[1753364409014,54.50332325,186.34,186.33,0.06]
[1753364409519,59.86985754,186.34,186.33,0.06]
[1753364410525,54.50332325,186.34,186.33,0.06]
[1753364411017,41.0,186.34,186.33,0.06]
[1753364411216,41.0,186.34,186.33,14.24332325]
[1753364412039,59.86985754,186.34,186.33,0.06]
[1753364412347,41.0,186.34,186.33,0.06]
[1753364412540,40.96,186.34,186.33,0.74]
[1753364413138,18.86841794,186.39,186.33,14.24332325]
[1753364413440,40.96,186.38,186.34,13.50332325]
[1753364413646,2.79852602,186.42,186.37,13.50332325]
[1753364413816,40.96,186.43,186.41,13.50332325]
[1753364414320,13.50332325,186.42,186.37,6.3491]
[1753364414525,13.50332325,186.39,186.33,13.56332325]
[1753364414844,54.46332325,186.38,186.33,13.56332325]
[1753364415040,54.46332325,186.38,186.33,14.24332325]
[1753364415218,13.50332325,186.37,186.33,0.06]
[1753364415624,13.50332325,186.36,186.33,0.06]
[1753364415934,13.50332325,186.34,186.33,0.06]
[1753364416542,13.93332325,186.34,186.29,0.06]
[1753364416750,13.50332325,186.3,186.29,0.06]
[1753364416937,54.44332325,186.3,186.29,0.06]
[1753364417125,54.87332325,186.3,186.29,0.06]
[1753364417534,60.24100977,186.3,186.29,0.06]
[1753364418225,73.66022608,186.3,186.2,0.68]
[1753364418554,13.50332325,186.22,186.17,2.3164]
[1753364418722,40.94,186.21,186.17,2.3164]
[1753364418922,40.94,186.21,186.17,15.13972325]
[1753364419122,40.94,186.21,186.19,0.68]
[1753364419743,40.94,186.21,186.2,0.68]
[1753364419958,5.36873868,186.27,186.2,14.18332325]
[1753364420122,40.94,186.26,186.23,13.50332325]
[1753364420326,16.78468397,186.37,186.24,0.68]
[1753364420327,40.94,186.25,186.24,0.68]
[1753364420547,40.94,186.25,186.22,26.0]
[1753364421726,40.94,186.25,186.23,0.68]
[1753364421926,13.50332325,186.28,186.23,0.68]
[1753364422120,40.94,186.27,186.23,0.68]
[1753364422334,40.94,186.27,186.24,14.18332325]
[1753364422537,13.50332325,186.32,186.26,13.50332325]
[1753364422740,54.44332325,186.31,186.25,14.18332325]
[1753364422934,40.94,186.3,186.25,14.18332325]
[1753364423138,40.94,186.3,186.26,14.18332325]
[1753364423345,54.44332325,186.3,186.27,0.68]
[1753364423544,13.50332325,186.29,186.24,0.68]
[1753364423723,18.87146245,186.29,186.24,0.68]
[1753364424550,13.50332325,186.29,186.24,0.68]
[1753364424733,59.81112066,186.3,186.25,0.68]
[1753364425134,59.81112066,186.3,186.25,14.18332325]
[1753364425539,59.81112066,186.3,186.25,0.68]
[1753364425738,13.41439496,186.37,186.28,13.50332325]
[1753364425939,13.50332325,186.34,186.28,13.50332325]
[1753364426140,40.96,186.33,186.3,13.50332325]
[1753364426357,40.96,186.33,186.3,14.18332325]
[1753364426856,40.96,186.33,186.31,14.18332325]
[1753364427429,40.96,186.33,186.31,0.68]
[1753364427626,40.96,186.33,186.3,13.50332325]
[1753364427842,5.36711034,186.32,186.29,26.0]
[1753364428166,13.50332325,186.32,186.27,13.50332325]
[1753364428454,13.50332325,186.32,186.26,19.61692325]
[1753364428659,13.50332325,186.32,186.26,6.1136]
[1753364428952,13.50332325,186.31,186.26,19.61692325]
[1753364429133,40.96,186.3,186.27,14.18332325]
[1753364429338,40.96,186.3,186.28,14.18332325]
[1753364429556,40.96,186.3,186.28,0.68]
[1753364429753,40.96,186.3,186.26,6.1136]
[1753364430058,59.831053,186.3,186.26,6.1136]
[1753364430358,59.831053,186.3,186.21,13.56332325]
[1753364430359,13.50332325,186.27,186.21,13.56332325]
[1753364430521,0.43,186.29,186.21,13.56332325]
[1753364430522,54.44332325,186.26,186.21,13.56332325]
[1753364430730,54.44332325,186.26,186.21,14.24332325]
[1753364430939,40.94,186.26,186.24,13.50332325]
[1753364431139,18.89987164,186.34,186.26,16.78468397]
[1753364431338,40.94,186.33,186.3,13.50332325]
[1753364431544,40.94,186.33,186.31,14.18332325]
[1753364431875,40.94,186.33,186.27,0.28432314]
[1753364431876,0.03,186.34,186.32,40.18332325]
[1753364432166,0.03,186.38,186.36,26.0]
[1753364432347,0.03,186.38,186.37,14.46764639]
[1753364432557,40.94,186.42,186.4,26.0]
[1753364432727,40.94,186.42,186.41,14.18332325]
[1753364433569,4.46401715,186.57,186.41,14.18332325]
[1753364433570,5.36170812,186.51,186.43,26.0]
[1753364433734,0.2,186.57,186.47,5.36252066]
[1753364433735,40.94,186.5,186.47,5.36252066]
[1753364434050,40.94,186.52,186.49,13.50332325]
[1753364434254,40.94,186.52,186.51,13.50332325]
[1753364435237,40.94,186.52,186.47,6.7914]
[1753364435442,59.8046786,186.52,186.47,45.61472325]
[1753364435770,59.8046786,186.52,186.46,13.50332325]
[1753364435771,13.50332325,186.51,186.46,13.50332325]
[1753364435958,46.30135535,186.52,186.47,13.50332325]
[1753364435959,60.2946786,186.52,186.47,13.50332325]
[1753364436131,40.94,186.52,186.51,13.50332325]
[1753364436447,40.94,186.52,186.5,13.50332325]
[1753364436754,40.94,186.52,186.51,13.50332325]
[1753364436955,0.2,186.57,186.51,19.54487672]
[1753364437257,40.94,186.56,186.54,13.50332325]
[1753364437551,0.2,186.57,186.54,13.50332325]
[1753364437857,0.2,186.57,186.52,0.68]
[1753364437858,40.94,186.55,186.52,13.50332325]
[1753364438647,40.94,186.55,186.51,13.50332325]
[1753364439161,40.94,186.55,186.47,96.54791902]
[1753364439162,5.36078052,186.54,186.5,39.50332325]
[1753364439350,0.03,186.51,186.5,39.50332325]
[1753364439547,40.95,186.51,186.47,2.1854]
[1753364439856,40.95,186.51,186.45,89.14216157]
[1753364439857,54.45332325,186.51,186.46,13.50332325]
[1753364440057,54.45332325,186.51,186.46,39.50332325]
[1753364440361,40.95,186.51,186.47,14.17332325]
[1753364440744,40.95,186.51,186.46,26.0]
[1753364440745,13.50332325,186.5,186.46,26.0]
[1753364440944,13.50332325,186.5,186.45,13.50332325]
[1753364440945,18.86535252,186.5,186.45,13.50332325]
[1753364441264,13.50332325,186.47,186.41,19.70952325]
[1753364441461,40.9,186.46,186.42,26.0]
[1753364441637,40.9,186.46,186.4,2.2724]
[1753364441638,13.50332325,186.44,186.36,0.73]
[1753364441842,18.766855,186.5,186.41,13.50332325]
[1753364442043,13.50332325,186.47,186.42,13.50332325]
[1753364442343,13.50332325,186.47,186.42,14.17332325]
[1753364442649,40.9,186.49,186.36,0.06]
[1753364442650,13.50332325,186.43,186.36,0.06]
[1753364442847,13.50332325,186.39,186.36,0.06]
[1753364443053,40.9,186.38,186.36,13.56332325]
[1753364443256,40.9,186.38,186.37,0.67]
[1753364444247,40.9,186.38,186.37,14.17332325]
[1753364444457,40.9,186.41,186.37,30.95800722]
[1753364444747,54.40332325,186.42,186.38,26.67]
[1753364444958,54.40332325,186.42,186.38,0.67]
[1753364445280,0.49,186.5,186.41,13.50332325]
[1753364445439,13.50332325,186.48,186.43,13.50332325]
[1753364445642,40.9,186.47,186.44,13.50332325]
[1753364445876,40.9,186.47,186.45,13.50332325]
[1753364446042,40.9,186.47,186.46,14.17332325]
[1753364446242,40.9,186.47,186.46,0.67]
[1753364446742,40.9,186.5,186.46,14.17332325]
[1753364446938,0.03,186.51,186.49,13.50332325]
[1753364447378,13.53332325,186.51,186.47,6.1025]
[1753364447571,13.53332325,186.51,186.44,13.50332325]
[1753364447572,13.50332325,186.49,186.44,13.50332325]
[1753364447776,0.03,186.51,186.43,39.50332325]
[1753364447777,54.40332325,186.48,186.43,39.50332325]
[1753364447966,54.40332325,186.48,186.45,26.0]
[1753364448169,54.40332325,186.48,186.43,14.17332325]
[1753364448365,13.50332325,186.47,186.42,32.4762]
[1753364448583,0.49,186.47,186.39,14.17332325]
[1753364448883,40.9,186.48,186.39,14.17332325]
[1753364448884,13.50332325,186.45,186.39,14.17332325]
[1753364449179,0.17216157,186.51,186.39,14.17332325]
[1753364449180,54.40332325,186.44,186.39,14.17332325]
[1753364449383,59.76706159,186.44,186.39,14.17332325]
[1753364449683,59.76706159,186.44,186.37,6.6134]
[1753364449684,13.50332325,186.42,186.37,20.11672325]
[1753364449870,13.50332325,186.43,186.38,14.17332325]
[1753364450070,13.50332325,186.43,186.38,13.50332325]
[1753364450274,40.9,186.44,186.41,13.50332325]
[1753364450473,40.9,186.44,186.41,14.17332325]
[1753364450777,40.9,186.44,186.41,13.50332325]
[1753364451191,56.36120546,186.51,186.37,11.97901648]
[1753364451192,13.50332325,186.48,186.43,18.86726682]
[1753364451368,13.50332325,186.5,186.45,13.50332325]
[1753364451565,40.9,186.49,186.45,14.17332325]
[1753364451971,13.50332325,186.47,186.42,0.67]
[1753364452159,13.50332325,186.47,186.43,26.0]
[1753364452359,13.50332325,186.48,186.43,39.50332325]
[1753364452773,13.50332325,186.48,186.43,40.17332325]
[1753364453272,18.86584128,186.48,186.43,39.50332325]
[1753364453595,13.50332325,186.44,186.39,26.0]
[1753364453888,40.9,186.43,186.39,26.0]
[1753364454097,5.36251803,186.48,186.45,26.0]
[1753364454098,40.9,186.48,186.45,26.0]
[1753364454269,40.9,186.48,186.47,13.50332325]
[1753364454660,40.9,186.48,186.47,14.17332325]
[1753364455183,40.93,186.51,186.47,14.17332325]
[1753364455375,0.03,186.51,186.5,13.50332325]
[1753364455584,0.03,186.51,186.5,14.17332325]
[1753364456079,0.03,186.51,186.49,13.50332325]
[1753364456282,0.03,186.51,186.5,13.50332325]
[1753364456873,0.03,186.51,186.5,14.17332325]
[1753364457381,0.03,186.51,186.5,36.85613053]
[1753364457783,0.03,186.51,186.5,19.53525354]
[1753364457983,0.03,186.51,186.5,14.17332325]
[1753364458171,0.03,186.51,186.49,45.84062325]
[1753364458688,0.03,186.51,186.49,32.3373]
[1753364458990,40.91,186.51,186.46,13.50332325]
[1753364459189,40.91,186.51,186.45,13.50332325]
[1753364459382,59.77499066,186.51,186.45,13.50332325]
[1753364459688,59.77499066,186.51,186.46,13.50332325]
[1753364460075,40.91,186.51,186.48,13.50332325]
[1753364460285,40.91,186.51,186.49,14.17332325]
[1753364460798,13.50332325,186.5,186.43,19.90642325]
[1753364460983,13.50332325,186.47,186.42,19.53750175]
[1753364461173,40.88,186.46,186.43,14.17332325]
[1753364461670,18.79583408,186.51,186.43,14.17332325]
[1753364461671,0.03,186.51,186.46,16.78468397]
[1753364461908,13.50332325,186.49,186.46,89.0]
[1753364462201,13.50332325,186.49,186.45,26.0]
[1753364462202,40.88,186.49,186.45,26.0]
[1753364462398,40.88,186.49,186.47,14.17332325]
[1753364462569,40.88,186.49,186.47,13.50332325]
[1753364462771,0.03,186.51,186.49,26.0]
[1753364462972,13.50332325,186.5,186.41,2.2597]
[1753364463176,13.50332325,186.47,186.41,2.2597]
[1753364463392,13.50332325,186.46,186.41,15.76302325]
[1753364463591,13.50332325,186.46,186.38,136.1536]
[1753364463592,13.50332325,186.42,186.38,0.06]
[1753364463898,13.50332325,186.39,186.38,0.06]
[1753364464081,13.50332325,186.39,186.32,0.06]
[1753364464285,13.50332325,186.37,186.32,0.06]
[1753364464481,54.36332325,186.37,186.32,0.06]
[1753364464795,13.50332325,186.33,186.32,0.06]
[1753364464971,54.36332325,186.33,186.32,0.06]
[1753364465173,42.78468397,186.39,186.32,0.06]
[1753364465174,26.0,186.39,186.32,0.06]
[1753364465390,13.50332325,186.35,186.32,0.06]
[1753364465594,59.74985754,186.34,186.32,0.06]
[1753364465773,40.88,186.34,186.32,0.06]
[1753364466199,26.0,186.39,186.32,0.06]
[1753364466390,13.50332325,186.33,186.32,0.06]
[1753364466584,54.38332325,186.33,186.32,0.06]
[1753364467480,54.81332325,186.33,186.32,0.06]
[1753364467684,60.18014555,186.33,186.32,0.06]
[1753364469586,60.18014555,186.33,186.3,0.06]
[1753364469587,16.78468397,186.32,186.3,0.06]
[1753364469804,13.50332325,186.31,186.3,0.06]
[1753364470001,0.43,186.31,186.3,0.06]
[1753364470207,30.86016879,186.31,186.21,0.73]
[1753364470408,0.43,186.3,186.21,0.06]
[1753364470624,13.50332325,186.26,186.21,0.06]
[1753364471115,40.88,186.26,186.24,13.50332325]
[1753364471418,40.88,186.26,186.24,14.17332325]
[1753364471595,54.38332325,186.26,186.21,14.23332325]
[1753364471794,13.50332325,186.25,186.21,0.06]
[1753364472198,13.50332325,186.24,186.21,0.06]
[1753364472511,54.38332325,186.23,186.21,0.06]
[1753364472709,13.50332325,186.22,186.21,0.06]
[1753364473390,13.93332325,186.22,186.21,0.06]
[1753364473590,19.30331573,186.22,186.21,0.06]
[1753364474310,18.87331573,186.22,186.21,0.06]
[1753364474693,40.9,186.22,186.21,0.06]
[1753364474911,54.40332325,186.22,186.21,0.06]
[1753364476392,59.77331573,186.22,186.21,0.06]
[1753364478704,13.41998892,186.29,186.21,0.06]
[1753364478894,18.87158608,186.28,186.23,13.50332325]
[1753364479100,0.43,186.33,186.21,0.06]
[1753364479101,40.9,186.27,186.24,14.17332325]
[1753364479301,0.43,186.33,186.26,13.50332325]
[1753364479302,2.80016262,186.31,186.26,13.50332325]
[1753364479510,2.80016262,186.31,186.3,13.50332325]
[1753364479716,40.9,186.33,186.31,5.36739842]
[1753364479915,2.79937099,186.39,186.32,14.17332325]
[1753364480121,43.69937099,186.39,186.34,26.0]
[1753364480295,40.9,186.39,186.38,13.50332325]
[1753364480501,40.9,186.42,186.38,14.17332325]
[1753364480698,40.9,186.42,186.39,14.17332325]
[1753364481220,40.9,186.42,186.4,14.17332325]
[1753364481413,40.9,186.42,186.4,0.67]
[1753364481612,21.66519875,186.45,186.41,14.17332325]
[1753364481613,40.9,186.44,186.41,14.17332325]
[1753364481794,40.9,186.44,186.42,0.67]
[1753364482112,40.9,186.44,186.41,13.50332325]
[1753364482311,40.9,186.44,186.41,0.67]
[1753364482517,46.26369018,186.44,186.4,13.50332325]
[1753364482716,13.50332325,186.49,186.43,13.50332325]
[1753364483021,40.9,186.48,186.44,13.50332325]
[1753364483325,40.9,186.48,186.4,0.53648068]
[1753364483326,13.50332325,186.47,186.41,26.0]
[1753364483623,0.03,186.42,186.41,39.50332325]
[1753364483837,0.03,186.42,186.41,26.95432314]
[1753364484001,0.03,186.42,186.41,40.45764639]
[1753364485117,0.03,186.42,186.41,40.17332325]
[1753364485714,0.03,186.42,186.41,26.67]